[Event "*** Titled Tuesday Blitz"]
[Site "Chess.com"]
[Date "2020.10.20"]
[Round "6"]
[White "W_Amadeus"]
[Black "Fandorine"]
[Result "1-0"]
[WhiteElo "2744"]
[BlackElo "2862"]
[TimeControl "180+1"]
[EndTime "11:06:05 PDT"]
[Termination "W_Amadeus won by resignation"]

1. e4 {[%clk 0:03:00.9]} 1... c5 {[%clk 0:02:59]} 2. Nf3 {[%clk 0:03:00.2]} 2...
d6 {[%clk 0:02:59.7]} 3. d4 {[%clk 0:03:00]} 3... cxd4 {[%clk 0:03:00.6]} 4.
Nxd4 {[%clk 0:03:00.5]} 4... Nf6 {[%clk 0:03:01.5]} 5. Nc3 {[%clk 0:03:00.8]}
5... a6 {[%clk 0:03:02]} 6. Be3 {[%clk 0:03:01.2]} 6... Nbd7 {[%clk 0:03:01.4]}
7. g4 {[%clk 0:02:53.7]} 7... h6 {[%clk 0:03:00.9]} 8. h4 {[%clk 0:02:34.4]}
8... e6 {[%clk 0:02:41.5]} 9. f3 {[%clk 0:02:20.8]} 9... b5 {[%clk 0:02:33]} 10.
a3 {[%clk 0:02:13.4]} 10... Bb7 {[%clk 0:02:28.3]} 11. Rg1 {[%clk 0:02:13.2]}
11... g6 {[%clk 0:02:23.4]} 12. Qd2 {[%clk 0:02:05.8]} 12... Ne5 {[%clk
0:02:19.4]} 13. O-O-O {[%clk 0:01:57]} 13... Rc8 {[%clk 0:02:18.4]} 14. g5
{[%clk 0:01:56.3]} 14... hxg5 {[%clk 0:02:18]} 15. hxg5 {[%clk 0:01:57.2]} 15...
Nfd7 {[%clk 0:02:18.6]} 16. f4 {[%clk 0:01:53.6]} 16... Nc4 {[%clk 0:02:17.3]}
17. Bxc4 {[%clk 0:01:53.4]} 17... Rxc4 {[%clk 0:02:18.2]} 18. f5 {[%clk
0:01:53.8]} 18... e5 {[%clk 0:02:14.8]} 19. fxg6 {[%clk 0:01:45.6]} 19... fxg6
{[%clk 0:01:50.6]} 20. Ne6 {[%clk 0:01:41.5]} 20... Qe7 {[%clk 0:01:48.7]} 21.
Nxf8 {[%clk 0:01:38.8]} 21... Nxf8 {[%clk 0:01:45.8]} 22. Qxd6 {[%clk
0:01:35.2]} 22... Qxd6 {[%clk 0:01:45]} 23. Rxd6 {[%clk 0:01:36.1]} 23... Rh3
{[%clk 0:01:45.2]} 24. Bd2 {[%clk 0:01:31]} 24... Bxe4 {[%clk 0:01:42.7]} 25.
Nxe4 {[%clk 0:01:21]} 25... Rxe4 {[%clk 0:01:42]} 26. Rxa6 {[%clk 0:01:21.3]}
26... Rf3 {[%clk 0:01:28.7]} 27. Bb4 {[%clk 0:01:10.5]} 27... Rf2 {[%clk
0:01:25.8]} 28. Ra8+ {[%clk 0:01:08]} 1-0

[Event "*** Titled Tuesday Blitz"]
[Site "Chess.com"]
[Date "2020.10.20"]
[Round "6"]
[White "Roza_Idrisova"]
[Black "ChelsieMonica"]
[Result "0-1"]
[WhiteElo "2166"]
[BlackElo "2356"]
[TimeControl "180+1"]
[EndTime "11:06:09 PDT"]
[Termination "ChelsieMonica won by resignation"]

1. d4 {[%clk 0:03:00.9]} 1... e5 {[%clk 0:02:58.1]} 2. dxe5 {[%clk 0:02:58.6]}
2... Nc6 {[%clk 0:02:58.8]} 3. Nf3 {[%clk 0:02:58.2]} 3... Qe7 {[%clk
0:02:59.2]} 4. Bg5 {[%clk 0:02:56.1]} 4... Qb4+ {[%clk 0:02:58.4]} 5. Bd2 {[%clk
0:02:55.9]} 5... Qxb2 {[%clk 0:02:58.4]} 6. Nc3 {[%clk 0:02:56]} 6... Nb4 {[%clk
0:02:52]} 7. Nd4 {[%clk 0:02:54.7]} 7... a6 {[%clk 0:02:42.5]} 8. Rb1 {[%clk
0:02:53.4]} 8... Qa3 {[%clk 0:02:42.4]} 9. Rb3 {[%clk 0:02:51.4]} 9... Qa5
{[%clk 0:02:42.5]} 10. a3 {[%clk 0:02:42.6]} 10... Nd5 {[%clk 0:02:31.5]} 11.
Ncb5 {[%clk 0:02:33.4]} 11... Qa4 {[%clk 0:02:30.9]} 12. Nc3 {[%clk 0:02:18.2]}
12... Qxd4 {[%clk 0:02:29]} 13. e3 {[%clk 0:02:04.2]} 13... Qxe5 {[%clk
0:02:28.5]} 14. f4 {[%clk 0:02:02.1]} 14... Nxc3 {[%clk 0:02:24.5]} 15. Rxc3
{[%clk 0:01:55.9]} 15... Qd6 {[%clk 0:02:15.6]} 16. Rd3 {[%clk 0:01:55]} 16...
Qb6 {[%clk 0:02:14.1]} 17. Be2 {[%clk 0:01:52.1]} 17... Nf6 {[%clk 0:02:12.3]}
18. Bf3 {[%clk 0:01:49.9]} 18... d5 {[%clk 0:02:11.2]} 19. O-O {[%clk
0:01:48.5]} 19... Bc5 {[%clk 0:02:05.3]} 20. Qe1 {[%clk 0:01:47.8]} 20... O-O
{[%clk 0:02:04.5]} 21. Rb3 {[%clk 0:01:37]} 21... Qe6 {[%clk 0:02:00.6]} 22. Rc3
{[%clk 0:01:14.5]} 22... Bb6 {[%clk 0:01:59.7]} 23. Rd3 {[%clk 0:01:08.8]} 23...
Re8 {[%clk 0:01:52.6]} 24. Qf2 {[%clk 0:01:06.7]} 24... Ne4 {[%clk 0:01:50.8]}
25. Bxe4 {[%clk 0:01:04.1]} 25... Qxe4 {[%clk 0:01:50.5]} 26. Qf3 {[%clk
0:00:58.3]} 26... Bf5 {[%clk 0:01:49.1]} 27. Qxe4 {[%clk 0:00:53.5]} 27... Bxe4
{[%clk 0:01:50]} 28. Rc3 {[%clk 0:00:52.5]} 28... Ba5 {[%clk 0:01:49.7]} 0-1

[Event "*** Titled Tuesday Blitz"]
[Site "Chess.com"]
[Date "2020.10.20"]
[Round "6"]
[White "Quiet_Desperation"]
[Black "Triumphmate"]
[Result "0-1"]
[WhiteElo "1840"]
[BlackElo "2433"]
[TimeControl "180+1"]
[EndTime "11:06:10 PDT"]
[Termination "Triumphmate won by resignation"]

1. e4 {[%clk 0:03:00.9]} 1... d5 {[%clk 0:03:00.9]} 2. exd5 {[%clk 0:03:00.8]}
2... Nf6 {[%clk 0:03:01.2]} 3. Nc3 {[%clk 0:03:01.7]} 3... Nxd5 {[%clk
0:02:59.1]} 4. Nf3 {[%clk 0:03:02.6]} 4... c6 {[%clk 0:02:58.5]} 5. Bc4 {[%clk
0:03:00.9]} 5... Bg4 {[%clk 0:02:57.8]} 6. h3 {[%clk 0:02:59.9]} 6... Bh5 {[%clk
0:02:57.4]} 7. g4 {[%clk 0:02:59.1]} 7... Bg6 {[%clk 0:02:56.4]} 8. Ne5 {[%clk
0:02:59.4]} 8... e6 {[%clk 0:02:54.7]} 9. h4 {[%clk 0:02:55.5]} 9... Bd6 {[%clk
0:02:51.6]} 10. h5 {[%clk 0:02:46.1]} 10... Bxe5 {[%clk 0:02:47.6]} 11. hxg6
{[%clk 0:02:45.3]} 11... fxg6 {[%clk 0:02:48]} 12. d4 {[%clk 0:02:37]} 12... Bf6
{[%clk 0:02:37.8]} 13. g5 {[%clk 0:02:31.2]} 13... Bxg5 {[%clk 0:02:22.5]} 14.
Qg4 {[%clk 0:02:30.6]} 14... Bxc1 {[%clk 0:02:10.8]} 15. Rxc1 {[%clk 0:02:30.6]}
15... Qf6 {[%clk 0:02:03.2]} 16. Bxd5 {[%clk 0:02:16]} 16... cxd5 {[%clk
0:02:00.3]} 17. Nb5 {[%clk 0:01:54.7]} 17... Na6 {[%clk 0:01:41.7]} 18. Nd6+
{[%clk 0:01:54.2]} 18... Kd7 {[%clk 0:01:39.5]} 19. Nb5 {[%clk 0:01:53.3]} 19...
h5 {[%clk 0:01:34.4]} 20. Qg3 {[%clk 0:01:51.5]} 20... e5 {[%clk 0:01:17]} 21.
dxe5 {[%clk 0:01:37.7]} 21... Rae8 {[%clk 0:01:17.3]} 22. f4 {[%clk 0:01:20.4]}
22... Rhf8 {[%clk 0:01:17]} 23. O-O {[%clk 0:01:19.4]} 23... Qb6+ {[%clk
0:01:16.2]} 24. Kh2 {[%clk 0:01:11.7]} 24... Qxb5 {[%clk 0:01:15.3]} 25. Qxg6
{[%clk 0:01:11.5]} 25... Qe2+ {[%clk 0:01:15.5]} 26. Kg1 {[%clk 0:01:08.3]}
26... Qg4+ {[%clk 0:01:14.5]} 0-1

[Event "*** Titled Tuesday Blitz"]
[Site "Chess.com"]
[Date "2020.10.20"]
[Round "6"]
[White "Morshynska"]
[Black "PawnEatingZombie"]
[Result "1-0"]
[WhiteElo "2240"]
[BlackElo "2150"]
[TimeControl "180+1"]
[EndTime "11:06:19 PDT"]
[Termination "Morshynska won by resignation"]

1. Nf3 {[%clk 0:03:00.9]} 1... d5 {[%clk 0:02:59.5]} 2. g3 {[%clk 0:03:01.2]}
2... Nc6 {[%clk 0:02:59]} 3. d4 {[%clk 0:03:00.4]} 3... Bf5 {[%clk 0:02:58.4]}
4. Bg2 {[%clk 0:02:58.4]} 4... Nb4 {[%clk 0:02:57.4]} 5. Na3 {[%clk 0:02:57.5]}
5... c5 {[%clk 0:02:41.3]} 6. c3 {[%clk 0:02:47.3]} 6... Nc6 {[%clk 0:02:40.9]}
7. dxc5 {[%clk 0:02:45]} 7... e6 {[%clk 0:02:40.3]} 8. Nd4 {[%clk 0:02:42.8]}
8... Bg6 {[%clk 0:02:31.3]} 9. Qa4 {[%clk 0:02:28.2]} 9... Bxc5 {[%clk 0:02:06]}
10. Nxc6 {[%clk 0:02:22.3]} 10... Qd7 {[%clk 0:02:06.1]} 11. b4 {[%clk
0:01:50.8]} 11... Bb6 {[%clk 0:01:45.7]} 12. b5 {[%clk 0:01:43.5]} 12... bxc6
{[%clk 0:01:37.3]} 13. bxc6 {[%clk 0:01:44.4]} 13... Qd6 {[%clk 0:01:27]} 14.
Nb5 {[%clk 0:01:06.9]} 14... Qe7 {[%clk 0:01:26.1]} 15. Ba3 {[%clk 0:01:01.5]}
15... Qd8 {[%clk 0:01:14.5]} 16. Nd6+ {[%clk 0:00:44.4]} 1-0

[Event "*** Titled Tuesday Blitz"]
[Site "Chess.com"]
[Date "2020.10.20"]
[Round "6"]
[White "Fy_Rakotomaharo"]
[Black "Zkid"]
[Result "0-1"]
[WhiteElo "2643"]
[BlackElo "2826"]
[TimeControl "180+1"]
[EndTime "11:06:24 PDT"]
[Termination "Zkid won by resignation"]

1. e4 {[%clk 0:03:00.9]} 1... e6 {[%clk 0:02:59.3]} 2. d4 {[%clk 0:02:59.8]}
2... d5 {[%clk 0:02:58.8]} 3. Nc3 {[%clk 0:03:00.4]} 3... Bb4 {[%clk 0:02:58.4]}
4. e5 {[%clk 0:02:59.9]} 4... c5 {[%clk 0:02:58.3]} 5. a3 {[%clk 0:03:00.5]}
5... Bxc3+ {[%clk 0:02:58.3]} 6. bxc3 {[%clk 0:03:01.4]} 6... Qa5 {[%clk
0:02:58.8]} 7. Bd2 {[%clk 0:02:57.8]} 7... Qa4 {[%clk 0:02:59]} 8. h4 {[%clk
0:02:58.1]} 8... b6 {[%clk 0:02:55.4]} 9. h5 {[%clk 0:02:56.2]} 9... h6 {[%clk
0:02:54.8]} 10. Rh4 {[%clk 0:02:45.4]} 10... c4 {[%clk 0:02:53.5]} 11. Rg4
{[%clk 0:02:29.7]} 11... Kf8 {[%clk 0:02:51.3]} 12. Nh3 {[%clk 0:02:24.2]} 12...
Ne7 {[%clk 0:02:49.3]} 13. Nf4 {[%clk 0:02:21.1]} 13... Nbc6 {[%clk 0:02:47]}
14. Be2 {[%clk 0:02:16.6]} 14... Bd7 {[%clk 0:02:38.5]} 15. g3 {[%clk
0:02:15.5]} 15... Nf5 {[%clk 0:02:35.8]} 16. Kf1 {[%clk 0:02:15.2]} 16... Ke7
{[%clk 0:02:34.1]} 17. Kg2 {[%clk 0:02:13.9]} 17... Rag8 {[%clk 0:02:33.8]} 18.
Qc1 {[%clk 0:01:55.6]} 18... Kd8 {[%clk 0:02:30.9]} 19. Rb1 {[%clk 0:01:55.5]}
19... Kc7 {[%clk 0:02:28.1]} 20. Bf1 {[%clk 0:01:50.1]} 20... Nce7 {[%clk
0:02:20.1]} 21. Rb4 {[%clk 0:01:46.5]} 21... Qc6 {[%clk 0:02:20]} 22. Kh2 {[%clk
0:01:44.6]} 22... g5 {[%clk 0:02:18.7]} 23. hxg6 {[%clk 0:01:45.1]} 23... fxg6
{[%clk 0:02:17.5]} 24. Ng2 {[%clk 0:01:42.2]} 24... g5 {[%clk 0:02:15.4]} 25.
Qd1 {[%clk 0:01:33.8]} 25... Be8 {[%clk 0:02:13.3]} 26. Be2 {[%clk 0:01:30.6]}
26... Bh5 {[%clk 0:02:10.4]} 27. a4 {[%clk 0:01:29.1]} 27... a5 {[%clk
0:02:01.1]} 28. Rb5 {[%clk 0:01:28.5]} 28... Bxg4 {[%clk 0:02:00.7]} 29. Bxg4
{[%clk 0:01:28.4]} 29... h5 {[%clk 0:02:01.3]} 30. Bxh5 {[%clk 0:01:27.4]} 30...
g4 {[%clk 0:02:00.1]} 31. Nf4 {[%clk 0:01:26.7]} 31... Rg5 {[%clk 0:01:49.1]}
32. Kg2 {[%clk 0:01:25.6]} 32... Rhxh5 {[%clk 0:01:41.3]} 33. Nxh5 {[%clk
0:01:25.7]} 33... Rxh5 {[%clk 0:01:42.2]} 34. Qxg4 {[%clk 0:01:26.1]} 34... Rh8
{[%clk 0:01:40.2]} 35. Qg5 {[%clk 0:01:25.9]} 35... Qe8 {[%clk 0:01:35.6]} 36.
Qf6 {[%clk 0:01:24.7]} 36... Qh5 {[%clk 0:01:32.7]} 0-1

[Event "*** Titled Tuesday Blitz"]
[Site "Chess.com"]
[Date "2020.10.20"]
[Round "6"]
[White "GothamChess"]
[Black "Makswolf200817"]
[Result "1/2-1/2"]
[WhiteElo "2611"]
[BlackElo "2454"]
[TimeControl "180+1"]
[EndTime "11:06:39 PDT"]
[Termination "Game drawn by repetition"]

1. d4 {[%clk 0:03:00.9]} 1... Nf6 {[%clk 0:02:57.6]} 2. Bg5 {[%clk 0:02:59.3]}
2... Ne4 {[%clk 0:02:55.4]} 3. h4 {[%clk 0:02:58]} 3... d5 {[%clk 0:02:49.3]} 4.
e3 {[%clk 0:02:58.1]} 4... c5 {[%clk 0:02:46.1]} 5. Bd3 {[%clk 0:02:58.2]} 5...
Nxg5 {[%clk 0:02:43.6]} 6. hxg5 {[%clk 0:02:58.2]} 6... g6 {[%clk 0:02:44.5]} 7.
c3 {[%clk 0:02:58.4]} 7... Nc6 {[%clk 0:02:43.6]} 8. f4 {[%clk 0:02:57.9]} 8...
Qb6 {[%clk 0:02:42.8]} 9. Qc1 {[%clk 0:02:47.3]} 9... Bg7 {[%clk 0:02:39.7]} 10.
Nf3 {[%clk 0:02:46.5]} 10... Bg4 {[%clk 0:02:34.6]} 11. Nbd2 {[%clk 0:02:44.4]}
11... h6 {[%clk 0:02:33]} 12. gxh6 {[%clk 0:02:42.1]} 12... Rxh6 {[%clk
0:02:32.6]} 13. Rxh6 {[%clk 0:02:41.8]} 13... Bxh6 {[%clk 0:02:33.5]} 14. Kf2
{[%clk 0:02:41]} 14... O-O-O {[%clk 0:02:32.1]} 15. Qc2 {[%clk 0:02:38.3]} 15...
Rh8 {[%clk 0:02:31.3]} 16. Rh1 {[%clk 0:02:37]} 16... Bg7 {[%clk 0:02:31.2]} 17.
Rxh8+ {[%clk 0:02:36.9]} 17... Bxh8 {[%clk 0:02:32.1]} 18. a3 {[%clk 0:02:34.8]}
18... c4 {[%clk 0:02:24.1]} 19. Be2 {[%clk 0:02:33.3]} 19... Bf5 {[%clk
0:02:24.1]} 20. Qc1 {[%clk 0:02:30.5]} 20... Bf6 {[%clk 0:02:23.1]} 21. Ne5
{[%clk 0:02:21.7]} 21... Nxe5 {[%clk 0:02:22.7]} 22. dxe5 {[%clk 0:02:09.6]}
22... Bg7 {[%clk 0:01:39.8]} 23. Nf3 {[%clk 0:02:03.6]} 23... f6 {[%clk
0:01:38.8]} 24. exf6 {[%clk 0:01:54.2]} 24... Bxf6 {[%clk 0:01:38.1]} 25. Nd4
{[%clk 0:01:52.9]} 25... Be4 {[%clk 0:01:38]} 26. Bf3 {[%clk 0:01:49.7]} 26...
Bxd4 {[%clk 0:01:37.1]} 27. Bxe4 {[%clk 0:01:32.6]} 27... Bxe3+ {[%clk
0:01:36.6]} 28. Qxe3 {[%clk 0:01:32.5]} 28... Qxb2+ {[%clk 0:01:35.9]} 29. Kg3
{[%clk 0:01:29.1]} 29... dxe4 {[%clk 0:01:35.3]} 30. Qc5+ {[%clk 0:01:29.1]}
30... Kd7 {[%clk 0:01:34.7]} 31. Qd4+ {[%clk 0:01:28.6]} 31... Ke8 {[%clk
0:01:34.5]} 32. Qxc4 {[%clk 0:01:27.9]} 32... Qxa3 {[%clk 0:01:31.1]} 33. Kg4
{[%clk 0:01:22.9]} 33... e3 {[%clk 0:01:26.3]} 34. Kf3 {[%clk 0:01:18.9]} 34...
Qc1 {[%clk 0:01:10.2]} 35. Qg8+ {[%clk 0:01:18.1]} 35... Kd7 {[%clk 0:01:09.6]}
36. Qd5+ {[%clk 0:01:19]} 36... Ke8 {[%clk 0:01:09]} 37. Qg8+ {[%clk 0:01:19.1]}
37... Kd7 {[%clk 0:01:09.2]} 38. Qd5+ {[%clk 0:01:20]} 38... Ke8 {[%clk
0:01:01.8]} 39. Qg8+ {[%clk 0:01:17.1]} 1/2-1/2

[Event "*** Titled Tuesday Blitz"]
[Site "Chess.com"]
[Date "2020.10.20"]
[Round "6"]
[White "UCantHandleDenker"]
[Black "ajdemipopushi"]
[Result "1-0"]
[WhiteElo "2525"]
[BlackElo "2343"]
[TimeControl "180+1"]
[EndTime "11:06:50 PDT"]
[Termination "UCantHandleDenker won on time"]

1. Nf3 {[%clk 0:03:00.9]} 1... c5 {[%clk 0:02:59.9]} 2. g3 {[%clk 0:03:01.3]}
2... g6 {[%clk 0:03:00.2]} 3. Bg2 {[%clk 0:03:01.9]} 3... Bg7 {[%clk 0:03:00.8]}
4. O-O {[%clk 0:03:02.6]} 4... Nc6 {[%clk 0:03:00.5]} 5. d3 {[%clk 0:03:03.5]}
5... e6 {[%clk 0:03:00.1]} 6. Nbd2 {[%clk 0:03:03.8]} 6... Nge7 {[%clk
0:02:59.8]} 7. e4 {[%clk 0:03:04.4]} 7... O-O {[%clk 0:02:59.6]} 8. Re1 {[%clk
0:03:04.7]} 8... b6 {[%clk 0:02:56.4]} 9. a4 {[%clk 0:02:58]} 9... Bb7 {[%clk
0:02:55.8]} 10. e5 {[%clk 0:02:55.1]} 10... d5 {[%clk 0:02:41.4]} 11. exd6
{[%clk 0:02:54.1]} 11... Qxd6 {[%clk 0:02:41.2]} 12. Ne4 {[%clk 0:02:51.8]}
12... Qd7 {[%clk 0:02:41.3]} 13. h4 {[%clk 0:02:50.9]} 13... f6 {[%clk
0:01:50.6]} 14. h5 {[%clk 0:02:43.5]} 14... Nf5 {[%clk 0:01:48]} 15. a5 {[%clk
0:02:37.5]} 15... Rad8 {[%clk 0:01:26.5]} 16. axb6 {[%clk 0:02:33.7]} 16... axb6
{[%clk 0:01:26.3]} 17. c3 {[%clk 0:02:14.5]} 17... Nfe7 {[%clk 0:00:18.7]} 18.
Qb3 {[%clk 0:02:10.6]} 18... Nd5 {[%clk 0:00:18.5]} 19. hxg6 {[%clk 0:01:55.9]}
19... hxg6 {[%clk 0:00:18.1]} 20. Nh4 {[%clk 0:01:55.8]} 20... Kf7 {[%clk
0:00:17.8]} 21. Bd2 {[%clk 0:01:44.6]} 21... Rfe8 {[%clk 0:00:04.5]} 22. Bh3
{[%clk 0:01:35.1]} 22... Na5 {[%clk 0:00:01.3]} 23. Rxa5 {[%clk 0:01:33.9]} 1-0

[Event "*** Titled Tuesday Blitz"]
[Site "Chess.com"]
[Date "2020.10.20"]
[Round "6"]
[White "tlomigtlis"]
[Black "profofchess"]
[Result "1-0"]
[WhiteElo "2569"]
[BlackElo "2351"]
[TimeControl "180+1"]
[EndTime "11:06:54 PDT"]
[Termination "tlomigtlis won on time"]

1. d4 {[%clk 0:03:00.9]} 1... Nf6 {[%clk 0:02:59.6]} 2. c4 {[%clk 0:03:00.7]}
2... e6 {[%clk 0:02:59.7]} 3. Nc3 {[%clk 0:03:00.8]} 3... Bb4 {[%clk 0:02:59.7]}
4. Qc2 {[%clk 0:03:01]} 4... b6 {[%clk 0:02:58.9]} 5. a3 {[%clk 0:03:01.2]} 5...
Bxc3+ {[%clk 0:02:57.6]} 6. Qxc3 {[%clk 0:03:02.1]} 6... Bb7 {[%clk 0:02:57.7]}
7. Bg5 {[%clk 0:03:02]} 7... h6 {[%clk 0:02:57]} 8. Bh4 {[%clk 0:03:01.7]} 8...
g5 {[%clk 0:02:52.8]} 9. Bg3 {[%clk 0:03:02]} 9... Ne4 {[%clk 0:02:52.5]} 10.
Qc2 {[%clk 0:03:02]} 10... d6 {[%clk 0:02:49]} 11. e3 {[%clk 0:03:02]} 11... h5
{[%clk 0:02:48.3]} 12. f3 {[%clk 0:03:00.3]} 12... Nxg3 {[%clk 0:02:39.4]} 13.
hxg3 {[%clk 0:03:01.2]} 13... Nd7 {[%clk 0:02:36]} 14. Bd3 {[%clk 0:03:00.6]}
14... Qe7 {[%clk 0:02:22.3]} 15. Ne2 {[%clk 0:03:00.7]} 15... h4 {[%clk
0:02:17.9]} 16. gxh4 {[%clk 0:02:51.8]} 16... gxh4 {[%clk 0:02:16.9]} 17. Nc3
{[%clk 0:02:49.3]} 17... O-O-O {[%clk 0:02:04.1]} 18. O-O-O {[%clk 0:02:47]}
18... Rdg8 {[%clk 0:01:57.8]} 19. Kb1 {[%clk 0:02:33.2]} 19... h3 {[%clk
0:01:47.3]} 20. Rxh3 {[%clk 0:02:30.8]} 20... Rxh3 {[%clk 0:01:46.5]} 21. gxh3
{[%clk 0:02:31.7]} 21... Bxf3 {[%clk 0:01:46.2]} 22. Rf1 {[%clk 0:02:31.6]}
22... Bb7 {[%clk 0:01:44.5]} 23. Be4 {[%clk 0:02:29.6]} 23... f5 {[%clk
0:01:23]} 24. Bxb7+ {[%clk 0:02:18.2]} 24... Kxb7 {[%clk 0:01:23.9]} 25. a4
{[%clk 0:02:18]} 25... a5 {[%clk 0:01:14.3]} 26. e4 {[%clk 0:02:15.8]} 26... Qg5
{[%clk 0:00:39.5]} 27. exf5 {[%clk 0:02:11.9]} 27... exf5 {[%clk 0:00:39.6]} 28.
Rxf5 {[%clk 0:02:09.9]} 28... Qg1+ {[%clk 0:00:39]} 29. Ka2 {[%clk 0:01:59.6]}
29... Qxd4 {[%clk 0:00:37.4]} 30. Nb5 {[%clk 0:01:59.5]} 30... Qe3 {[%clk
0:00:19.3]} 31. Rf7 {[%clk 0:01:54.9]} 31... Qe6 {[%clk 0:00:15.3]} 32. Rh7
{[%clk 0:01:50.1]} 32... Rf8 {[%clk 0:00:07.8]} 33. Qg2+ {[%clk 0:01:49.3]}
33... Kb8 {[%clk 0:00:02.1]} 34. Qc6 {[%clk 0:01:47.8]} 1-0

[Event "*** Titled Tuesday Blitz"]
[Site "Chess.com"]
[Date "2020.10.20"]
[Round "6"]
[White "Mikhail_Golubev"]
[Black "GMJustin"]
[Result "1-0"]
[WhiteElo "2533"]
[BlackElo "2279"]
[TimeControl "180+1"]
[EndTime "11:06:57 PDT"]
[Termination "Mikhail_Golubev won on time"]

1. e4 {[%clk 0:03:00.9]} 1... e5 {[%clk 0:02:43.6]} 2. Nf3 {[%clk 0:02:59.9]}
2... Nc6 {[%clk 0:02:43.5]} 3. Bb5 {[%clk 0:02:59.6]} 3... a6 {[%clk 0:02:42.2]}
4. Ba4 {[%clk 0:02:59.3]} 4... Nf6 {[%clk 0:02:40.8]} 5. O-O {[%clk 0:02:58.7]}
5... Be7 {[%clk 0:02:38.5]} 6. d3 {[%clk 0:02:58.6]} 6... d6 {[%clk 0:02:13.2]}
7. c3 {[%clk 0:02:53.1]} 7... Bd7 {[%clk 0:02:05.6]} 8. Nbd2 {[%clk 0:02:48.5]}
8... O-O {[%clk 0:02:02.5]} 9. d4 {[%clk 0:02:33.8]} 9... b5 {[%clk 0:01:52.3]}
10. Bc2 {[%clk 0:02:32.3]} 10... exd4 {[%clk 0:01:37.5]} 11. cxd4 {[%clk
0:02:18.9]} 11... Bg4 {[%clk 0:01:35.9]} 12. Nb3 {[%clk 0:02:17.6]} 12... Nb4
{[%clk 0:01:22.9]} 13. Bb1 {[%clk 0:02:16.4]} 13... c5 {[%clk 0:01:19.9]} 14. h3
{[%clk 0:01:59.7]} 14... Bxf3 {[%clk 0:01:00]} 15. Qxf3 {[%clk 0:01:59.3]} 15...
c4 {[%clk 0:00:58.9]} 16. Nd2 {[%clk 0:01:57.6]} 16... d5 {[%clk 0:00:30.1]} 17.
e5 {[%clk 0:01:53.5]} 17... Ne8 {[%clk 0:00:28]} 18. Qg4 {[%clk 0:01:29.1]}
18... Nc7 {[%clk 0:00:17.4]} 19. Nf3 {[%clk 0:01:27]} 19... g6 {[%clk
0:00:11.9]} 20. Bh6 {[%clk 0:01:25.9]} 20... Re8 {[%clk 0:00:11.3]} 21. h4
{[%clk 0:01:26.1]} 21... Qc8 {[%clk 0:00:04.5]} 22. Qg3 {[%clk 0:01:21.1]} 1-0

[Event "*** Titled Tuesday Blitz"]
[Site "Chess.com"]
[Date "2020.10.20"]
[Round "6"]
[White "KarstenHansch"]
[Black "NikolaGry"]
[Result "0-1"]
[WhiteElo "2495"]
[BlackElo "2712"]
[TimeControl "180+1"]
[EndTime "11:07:01 PDT"]
[Termination "NikolaGry won by resignation"]

1. e4 {[%clk 0:03:00.9]} 1... d5 {[%clk 0:02:58.2]} 2. exd5 {[%clk 0:02:59.8]}
2... Nf6 {[%clk 0:02:58.4]} 3. d4 {[%clk 0:02:58.5]} 3... Nxd5 {[%clk
0:02:58.4]} 4. Nf3 {[%clk 0:02:59.1]} 4... g6 {[%clk 0:02:57.9]} 5. c4 {[%clk
0:02:55.9]} 5... Nb6 {[%clk 0:02:58]} 6. Nc3 {[%clk 0:02:55.9]} 6... Bg7 {[%clk
0:02:58]} 7. Be2 {[%clk 0:02:56.3]} 7... O-O {[%clk 0:02:57.4]} 8. O-O {[%clk
0:02:56.5]} 8... Be6 {[%clk 0:02:56.2]} 9. d5 {[%clk 0:02:51]} 9... Bg4 {[%clk
0:02:55.6]} 10. Qb3 {[%clk 0:02:40.9]} 10... N8d7 {[%clk 0:02:44.1]} 11. Be3
{[%clk 0:02:38.6]} 11... c6 {[%clk 0:02:36.7]} 12. Rad1 {[%clk 0:02:14.8]} 12...
Qc7 {[%clk 0:02:26.2]} 13. h3 {[%clk 0:02:05.7]} 13... Bxf3 {[%clk 0:02:22.8]}
14. Bxf3 {[%clk 0:02:05.9]} 14... Ne5 {[%clk 0:02:08.9]} 15. Be2 {[%clk
0:02:00.1]} 15... Rfd8 {[%clk 0:02:05.5]} 16. f4 {[%clk 0:01:20.9]} 16... Ned7
{[%clk 0:02:01.3]} 17. c5 {[%clk 0:01:08.4]} 17... Nxd5 {[%clk 0:01:42.4]} 18.
Nxd5 {[%clk 0:00:53.8]} 18... cxd5 {[%clk 0:01:42.2]} 19. Rxd5 {[%clk
0:00:53.8]} 19... e6 {[%clk 0:01:28.6]} 20. Rdd1 {[%clk 0:00:37.2]} 20... Nxc5
{[%clk 0:01:11.6]} 21. Qc2 {[%clk 0:00:36]} 21... Na6 {[%clk 0:01:09.7]} 22. Rc1
{[%clk 0:00:26.4]} 22... Qxc2 {[%clk 0:01:07.3]} 23. Rxc2 {[%clk 0:00:27.3]}
23... Nb4 {[%clk 0:01:07.3]} 24. Rc7 {[%clk 0:00:26.7]} 24... Nd5 {[%clk
0:01:07.2]} 0-1

[Event "*** Titled Tuesday Blitz"]
[Site "Chess.com"]
[Date "2020.10.20"]
[Round "6"]
[White "chessmadara"]
[Black "witcher8"]
[Result "1-0"]
[WhiteElo "2186"]
[BlackElo "2422"]
[TimeControl "180+1"]
[EndTime "11:07:01 PDT"]
[Termination "chessmadara won on time"]

1. e4 {[%clk 0:03:00.9]} 1... c6 {[%clk 0:02:59.1]} 2. d4 {[%clk 0:02:54]} 2...
d5 {[%clk 0:03:00]} 3. Nc3 {[%clk 0:02:53]} 3... dxe4 {[%clk 0:02:58.2]} 4. Nxe4
{[%clk 0:02:53.1]} 4... Bf5 {[%clk 0:02:58.7]} 5. Ng3 {[%clk 0:02:51.6]} 5...
Bg6 {[%clk 0:02:58.8]} 6. h4 {[%clk 0:02:50.7]} 6... h6 {[%clk 0:02:58.7]} 7. f4
{[%clk 0:02:50.7]} 7... e6 {[%clk 0:02:41.5]} 8. Nf3 {[%clk 0:02:48.4]} 8... Nd7
{[%clk 0:02:41.1]} 9. h5 {[%clk 0:02:46.2]} 9... Bh7 {[%clk 0:02:40.1]} 10. Bd3
{[%clk 0:02:41.7]} 10... Bxd3 {[%clk 0:02:40]} 11. Qxd3 {[%clk 0:02:42.6]} 11...
Ngf6 {[%clk 0:02:40.8]} 12. Bd2 {[%clk 0:02:41.8]} 12... Qc7 {[%clk 0:02:40.1]}
13. O-O-O {[%clk 0:02:41.1]} 13... c5 {[%clk 0:02:40.2]} 14. Kb1 {[%clk
0:02:39.4]} 14... Be7 {[%clk 0:02:21.5]} 15. Ne5 {[%clk 0:02:35.7]} 15... O-O
{[%clk 0:02:00.3]} 16. Ne4 {[%clk 0:02:34]} 16... cxd4 {[%clk 0:01:54.6]} 17.
Qxd4 {[%clk 0:02:29.5]} 17... Nxe4 {[%clk 0:01:44.5]} 18. Qxe4 {[%clk
0:02:28.9]} 18... Nf6 {[%clk 0:01:43.4]} 19. Qf3 {[%clk 0:02:28.4]} 19... Rac8
{[%clk 0:01:34.9]} 20. Rc1 {[%clk 0:02:27.5]} 20... Nd5 {[%clk 0:01:28.7]} 21.
g4 {[%clk 0:02:25]} 21... Bf6 {[%clk 0:01:26]} 22. g5 {[%clk 0:02:14.6]} 22...
Bxe5 {[%clk 0:01:24.4]} 23. fxe5 {[%clk 0:02:14]} 23... hxg5 {[%clk 0:01:12.8]}
24. h6 {[%clk 0:02:12.7]} 24... g6 {[%clk 0:01:06.8]} 25. c4 {[%clk 0:02:02]}
25... Qxe5 {[%clk 0:00:29.9]} 26. cxd5 {[%clk 0:02:00.2]} 26... Rxc1+ {[%clk
0:00:23.8]} 27. Rxc1 {[%clk 0:01:58.6]} 27... Kh7 {[%clk 0:00:16.3]} 28. Bc3
{[%clk 0:01:56]} 28... Qf5+ {[%clk 0:00:12.5]} 29. Qxf5 {[%clk 0:01:55.5]} 29...
gxf5 {[%clk 0:00:13.4]} 30. Bg7 {[%clk 0:01:54.7]} 30... Rd8 {[%clk 0:00:11.6]}
31. dxe6 {[%clk 0:01:54.3]} 31... fxe6 {[%clk 0:00:12.1]} 32. Rc7 {[%clk
0:01:54]} 32... Kg6 {[%clk 0:00:11.1]} 33. h7 {[%clk 0:01:51.5]} 33... g4 {[%clk
0:00:04.9]} 34. h8=Q {[%clk 0:01:50.3]} 1-0